bitfinex-derivatives/quotes_ETHF0:USTF0_20250530
["timestamp","ask_amount","ask_price","bid_price","bid_amount"]
[1748568248960,3.2078,2604.4,2603.3,0.00576336]
[1748568249223,4.01126323,2604.7,2603.3,0.00576336]
[1748568249224,2.21576323,2604.7,2604.3,3.2078]
[1748568249448,0.61861797,2605.5,2604.6,3.2078]
[1748568249618,2.21576323,2606.7,2604.4,3.6109]
[1748568249619,5.794,2606.0,2605.2,3.2078]
[1748568249817,5.794,2606.0,2605.6,3.2078]
[1748568250512,9.6088,2606.2,2605.6,3.2078]
[1748568250715,1.7955,2606.6,2606.0,3.2078]
[1748568250716,6.401,2606.5,2606.0,3.2078]
[1748568251014,5.791,2606.8,2606.1,3.2078]
[1748568251317,5.791,2606.8,2606.2,0.00576336]
[1748568251522,5.0918,2606.7,2606.2,0.00576336]
[1748568252020,0.99774767,2606.6,2606.2,0.00576336]
[1748568252219,0.99774767,2606.5,2606.2,0.00576336]
[1748568252415,0.99589198,2606.4,2606.2,0.00576336]
[1748568252617,0.99589198,2606.3,2606.2,0.00576336]
[1748568253425,3.2078,2606.3,2606.2,0.00576336]
[1748568253718,9.2031849,2606.3,2605.1,3.2078]
[1748568253946,3.2078,2605.7,2605.1,3.2078]
[1748568254125,8.5906849,2605.6,2605.1,3.2078]
[1748568254322,0.9953849,2605.5,2605.1,3.2078]
[1748568254520,6.78439654,2605.4,2605.1,3.2078]
[1748568254723,11.79849654,2605.4,2605.0,0.00576336]
[1748568254926,0.99539654,2605.3,2605.0,0.00576336]
[1748568255119,3.2078,2605.1,2605.0,0.00576336]
[1748568255424,4.20319654,2605.1,2605.0,0.00576336]
[1748568255717,2.80169654,2605.1,2605.0,0.00576336]
[1748568255922,11.00949654,2605.1,2604.5,3.2078]
[1748568256124,0.99539654,2605.0,2604.5,3.2078]
[1748568256317,1.8063,2604.9,2604.5,3.2078]
[1748568256620,5.789,2604.8,2604.5,3.2078]
[1748568257217,5.788,2604.8,2604.5,3.2078]
[1748568257419,3.2078,2605.1,2604.5,3.2078]
[1748568258527,0.99538513,2605.0,2604.5,3.2078]
[1748568258719,3.2078,2605.1,2604.5,3.2078]
[1748568258928,0.99538769,2605.0,2604.5,3.2078]
[1748568259239,3.2078,2605.1,2604.5,3.2078]
[1748568259429,0.99502596,2605.0,2604.5,3.2078]
[1748568259620,3.2078,2605.1,2604.5,3.2078]
[1748568259823,6.78331093,2605.0,2604.5,3.2078]
[1748568260147,0.99528709,2604.9,2604.5,3.2078]
[1748568260427,7.59,2605.0,2604.5,3.2078]
[1748568260625,0.99553893,2604.9,2604.5,3.2078]
[1748568260828,7.59,2605.0,2604.5,3.2078]
[1748568261133,3.2078,2604.8,2604.4,0.00576336]
[1748568261322,2.79756634,2604.7,2604.4,0.00576336]
[1748568261627,0.99556634,2604.6,2604.4,0.00576336]
[1748568261827,5.788,2604.6,2604.4,0.00576336]
[1748568262325,3.2078,2604.8,2604.4,0.00576336]
[1748568262523,7.59,2604.7,2604.4,0.00576336]
[1748568264427,8.19764182,2604.7,2604.4,0.00576336]
[1748568264824,3.2078,2604.5,2603.6,1.871]
[1748568265031,3.2078,2604.1,2603.6,1.871]
[1748568265332,5.788,2604.0,2603.6,1.871]
[1748568265527,5.788,2604.0,2603.8,3.2078]
[1748568265824,1.7983,2604.4,2603.8,3.2078]
[1748568266030,0.00576336,2604.2,2603.8,3.2078]
[1748568266729,5.79376336,2604.2,2603.8,3.2078]
[1748568267827,0.00576336,2604.2,2604.1,3.2078]
[1748568268527,0.00576336,2604.2,2603.8,3.2078]
[1748568268931,0.00576336,2604.2,2604.1,3.2078]
[1748568269331,0.00576336,2604.2,2603.8,3.2078]
[1748568269631,0.1912,2604.1,2603.9,1.7896]
[1748568269835,0.1912,2604.1,2603.6,1.87676336]
[1748568270132,1.8689,2604.0,2603.6,0.00576336]
[1748568270538,5.788,2603.9,2603.6,0.00576336]
[1748568270738,5.788,2603.8,2603.6,0.00576336]
[1748568271639,1.8689,2603.7,2603.6,0.00576336]
[1748568272638,5.789,2603.7,2603.6,0.00576336]
[1748568274541,5.789,2604.0,2603.6,0.00576336]
[1748568274741,5.789,2604.0,2603.7,3.2078]
[1748568275040,5.789,2604.0,2603.8,1.758]
[1748568275545,5.9802,2604.1,2603.8,1.758]
[1748568277043,0.1912,2604.1,2603.8,1.758]
[1748568277238,0.1912,2604.1,2603.8,3.5531]
[1748568278438,0.1912,2604.1,2604.0,3.2078]
[1748568281241,0.1912,2604.1,2603.8,1.758]
[1748568281540,1.00799834,2604.0,2603.8,1.758]
[1748568281742,0.1912,2604.1,2603.8,1.758]
[1748568281948,1.00800372,2604.0,2603.8,1.758]
[1748568282259,1.00800372,2603.9,2603.8,1.758]
[1748568282643,1.00800372,2603.9,2603.7,3.2078]
[1748568282877,5.725,2604.0,2603.8,1.8929]
[1748568283064,1.00898107,2603.9,2603.8,1.8929]
[1748568283240,5.725,2604.0,2603.8,1.8929]
[1748568283444,1.0090008,2603.9,2603.8,1.8929]
[1748568284739,1.0090008,2603.9,2603.6,0.00576336]
[1748568284955,1.0090008,2603.8,2603.6,0.00576336]
[1748568285142,1.0090008,2603.7,2603.6,0.00576336]
[1748568285351,1.0090008,2604.0,2603.6,3.21356336]
[1748568285543,0.1912,2604.1,2603.7,1.8684]
[1748568285847,1.01073284,2604.0,2603.7,1.8684]
[1748568287552,1.01051616,2603.9,2603.7,1.8684]
[1748568287849,1.01051616,2603.8,2603.7,1.8684]
[1748568288051,1.01051616,2604.0,2603.7,1.8684]
[1748568288246,1.01051616,2603.9,2603.7,1.8684]
[1748568288443,1.01051616,2603.8,2603.7,1.8684]
[1748568288646,1.01051616,2604.0,2603.7,1.8684]
[1748568288847,1.01051616,2603.9,2603.7,1.8684]
[1748568289063,1.01051616,2603.8,2603.7,1.8684]
[1748568289253,1.01051616,2604.0,2603.7,1.8684]
[1748568289449,1.01051616,2603.9,2603.7,1.8684]
[1748568289755,0.1912,2604.1,2603.7,1.8684]
[1748568289956,2.91375285,2604.0,2603.7,1.8684]
[1748568290256,1.01075285,2603.9,2603.7,1.8684]
[1748568290560,1.903,2604.0,2603.7,1.8684]
[1748568290755,1.01080266,2603.9,2603.6,3.21356336]
[1748568291056,1.01080266,2603.8,2603.7,1.8349]
[1748568291651,1.01084209,2603.9,2603.7,1.8349]
[1748568291851,1.01084209,2603.8,2603.7,1.8349]
[1748568294362,0.01129636,2603.8,2603.7,1.8349]
[1748568294563,0.01129636,2603.8,2603.7,3.7231]
[1748568294763,0.1912,2604.1,2603.7,8.7231]
[1748568294959,0.1912,2604.1,2604.0,3.2078]
[1748568295357,5.726,2604.7,2604.0,8.2078]
[1748568295564,1.01148613,2604.6,2604.4,3.2078]
[1748568295862,5.726,2604.7,2604.5,1.8399]
[1748568296068,1.01148131,2604.6,2604.4,3.2078]
[1748568296271,1.01148131,2604.6,2604.0,5.077]
[1748568296272,1.01148131,2604.5,2604.0,5.077]
[1748568297763,1.7599,2604.4,2604.0,5.077]
[1748568297952,1.01148131,2604.3,2604.0,5.077]
[1748568298159,1.7599,2604.4,2604.0,5.077]
[1748568298968,1.01105966,2604.3,2604.0,5.077]
[1748568299165,1.7599,2604.4,2604.0,5.077]
[1748568299556,1.01105001,2604.3,2604.0,5.077]
[1748568299761,3.2078,2604.7,2604.0,5.077]
[1748568299966,5.725,2604.6,2604.0,5.077]
[1748568300264,1.01109469,2604.5,2604.0,5.077]
[1748568300563,6.73609469,2604.5,2604.0,5.077]
[1748568300763,5.725,2604.5,2604.4,3.2078]
[1748568300960,6.73625523,2604.5,2604.4,3.2078]
[1748568301173,11.73625523,2604.5,2604.1,3.2078]
[1748568301393,2.87435523,2604.4,2604.1,3.2078]
[1748568301557,1.01125523,2604.3,2604.1,3.2078]
[1748568301761,1.01125523,2604.2,2604.1,3.2078]
[1748568302058,5.725,2604.6,2604.1,3.2078]
[1748568302265,1.01119652,2604.5,2604.4,3.2078]
[1748568302464,1.01119652,2604.5,2604.1,3.2078]
[1748568302663,1.01137311,2604.4,2604.1,3.2078]
[1748568302866,1.01137311,2604.3,2604.1,3.2078]
[1748568303066,5.725,2604.6,2604.1,3.2078]
[1748568303265,1.01139629,2604.5,2604.1,3.2078]
[1748568303570,1.01139629,2604.4,2604.2,3.2078]
[1748568303772,0.00576336,2604.8,2604.2,3.2078]
[1748568303973,1.01113898,2604.7,2604.2,3.2078]
[1748568304173,1.01113898,2604.6,2604.2,3.2078]
[1748568304367,0.00576336,2604.8,2604.5,3.2078]
[1748568304568,1.0111591,2604.7,2604.5,3.2078]
[1748568304874,1.0111591,2604.6,2604.5,3.2078]
[1748568306676,6.0111591,2604.6,2604.2,3.2078]
[1748568306976,2.80250264,2604.5,2604.2,3.2078]
[1748568307272,1.01070264,2604.4,2604.2,3.2078]
[1748568307473,5.725,2604.6,2604.2,3.2078]
[1748568307474,1.01070264,2604.3,2604.2,3.2078]
[1748568308474,1.01070264,2604.3,2603.9,4.9792]
[1748568308672,5.725,2604.4,2604.2,3.2078]
[1748568308873,1.01040927,2604.3,2604.2,3.2078]
[1748568309572,1.01040927,2604.3,2604.1,3.2078]
[1748568309769,1.01040927,2604.2,2604.1,3.2078]
[1748568310982,1.01040927,2604.2,2603.8,3.2078]
[1748568311181,2.87090927,2604.1,2603.8,3.2078]
[1748568311477,7.38640927,2604.0,2603.8,3.2078]
[1748568311680,1.8605,2604.1,2603.8,3.2078]
[1748568311885,1.01022083,2604.0,2603.8,3.2078]
[1748568312187,7.5195,2604.1,2603.8,3.2078]
[1748568312483,1.01018519,2604.0,2603.8,3.2078]
[1748568312785,7.5195,2604.1,2603.8,3.2078]
[1748568313080,1.01001812,2604.0,2603.8,3.2078]
[1748568313269,5.659,2604.1,2603.8,3.2078]
[1748568313471,1.01004662,2604.0,2603.8,3.2078]
[1748568313795,5.659,2604.1,2603.8,3.2078]
[1748568313977,1.01001087,2604.0,2603.8,3.2078]
[1748568314178,5.659,2604.1,2603.8,3.2078]
[1748568314378,1.01000419,2604.0,2603.8,3.2078]
[1748568314577,5.659,2604.6,2603.8,3.2078]
[1748568314885,1.00995468,2604.5,2604.1,3.2078]
[1748568315178,1.00999888,2604.4,2604.1,3.2078]
[1748568315378,1.00999888,2604.3,2604.1,3.2078]
[1748568315585,5.659,2604.6,2604.1,3.2078]
[1748568315884,1.01012645,2604.5,2604.1,3.2078]
[1748568316073,1.01012645,2604.4,2604.1,3.2078]
[1748568316278,1.01012645,2604.3,2604.1,3.2078]
[1748568316479,5.659,2604.7,2604.1,3.2078]
[1748568316675,1.01017513,2604.6,2604.4,3.2078]
[1748568316982,1.01017513,2604.5,2604.4,3.2078]
[1748568317785,1.01017513,2604.6,2604.4,3.2078]
[1748568317987,0.00576336,2604.8,2604.5,1.9216]
[1748568318183,1.01042254,2604.7,2604.5,1.9216]
[1748568318390,0.00576336,2604.8,2604.5,1.9216]
[1748568318690,0.00576336,2604.8,2604.7,3.2078]
[1748568319181,0.00576336,2604.8,2604.7,8.2078]
[1748568319590,0.00576336,2604.8,2604.7,3.2078]
[1748568319778,0.00576336,2604.8,2604.7,8.2078]
[1748568320983,0.00576336,2604.8,2604.7,3.2078]
[1748568321489,0.00576336,2604.8,2604.7,8.2078]
[1748568321985,0.00576336,2604.8,2604.7,3.2078]
[1748568327189,0.00576336,2604.8,2604.6,3.2078]
[1748568327493,0.00576336,2604.8,2604.7,3.2078]
[1748568328494,0.00576336,2604.8,2604.4,3.2078]
[1748568328690,0.00576336,2604.8,2604.5,1.8942]
[1748568329391,0.00576336,2604.8,2604.7,3.2078]
[1748568332691,0.00576336,2604.8,2604.7,4.8414]
[1748568334906,0.00576336,2604.8,2604.7,9.8414]
[1748568335093,0.00576336,2604.8,2604.7,11.5657]
[1748568335496,7.5666,2605.4,2604.7,11.5657]
[1748568335497,5.657,2605.4,2604.7,11.5657]
[1748568335698,5.657,2605.4,2605.0,3.2078]
[1748568335897,5.657,2605.4,2605.1,1.642]
[1748568337095,7.2493,2605.4,2605.1,1.642]
[1748568338397,1.00729378,2605.3,2605.0,3.21356336]
[1748568338604,1.638,2605.3,2605.0,0.00576336]
[1748568339306,1.79422564,2605.5,2605.0,0.00576336]
[1748568339499,1.79422564,2605.5,2605.1,3.2078]
[1748568339812,1.79422564,2605.5,2605.2,1.6416]
[1748568340504,1.79422564,2605.5,2605.0,0.00576336]
[1748568340505,1.007482,2605.4,2605.0,0.00576336]
[1748568340698,14.80822564,2605.5,2605.0,0.00576336]
[1748568340699,2.645482,2605.3,2605.0,0.00576336]
[1748568340900,6.598482,2605.2,2605.0,0.00576336]
[1748568341105,1.007482,2605.1,2605.0,0.00576336]
[1748568341711,7.229,2605.2,2605.0,0.00576336]
[1748568341900,1.00761426,2605.1,2605.0,0.00576336]
[1748568342405,7.2581,2605.4,2605.0,0.00576336]
[1748568342594,1.00802793,2605.3,2605.1,3.2078]
[1748568342800,2.67512793,2605.2,2605.0,0.00576336]
[1748568343009,1.00802793,2605.1,2605.0,0.00576336]
[1748568343309,2.67512793,2605.1,2605.0,0.00576336]
[1748568344411,2.67623747,2605.1,2605.0,0.00576336]
[1748568346310,1.00913747,2605.1,2605.0,3.21356336]
[1748568346509,5.591,2605.3,2605.0,3.21356336]
[1748568346804,1.01034535,2605.2,2605.0,3.21356336]
[1748568347013,5.591,2605.3,2605.0,3.21356336]
[1748568347301,1.01033969,2605.2,2605.0,3.21356336]
[1748568347506,5.591,2605.3,2605.0,3.21356336]
[1748568347707,1.01072259,2605.2,2605.0,3.21356336]
[1748568348010,5.591,2605.3,2605.0,3.21356336]
[1748568348313,1.01067431,2605.2,2605.0,3.21356336]
[1748568348506,1.01073245,2605.1,2605.0,3.21356336]
[1748568349507,5.591,2605.3,2605.0,3.21356336]
[1748568349710,1.01027194,2605.2,2605.1,1.5894]
[1748568352715,0.00572564,2605.5,2605.1,1.5894]
[1748568352903,0.00572564,2605.5,2605.4,3.2078]
[1748568353410,1.01588176,2605.5,2605.4,3.2078]
[1748568358412,0.00572564,2605.5,2605.4,3.2078]
[1748568358618,1.6746,2606.0,2605.4,3.2078]
[1748568358813,1.00927185,2605.9,2605.8,3.2078]
[1748568359316,5.59,2606.5,2605.8,3.2078]
[1748568359512,1.00904847,2606.4,2605.9,3.3385]
[1748568359713,1.00904847,2606.3,2605.9,3.3385]
[1748568359912,1.00904847,2606.2,2605.9,3.3385]
[1748568360115,1.00904847,2606.1,2605.9,3.3385]
[1748568360315,1.00904847,2606.0,2605.9,3.3385]
[1748568360524,1.00904847,2606.4,2605.9,3.3385]
[1748568360712,5.59,2606.5,2606.1,3.2078]
[1748568360914,1.0093644,2606.4,2606.2,1.4165]
[1748568361114,3.2078,2606.9,2606.2,1.4165]
[1748568361319,3.2078,2606.9,2606.3,0.00576336]
[1748568361511,2.9547,2606.8,2606.3,0.00576336]
[1748568361712,0.34473767,2607.0,2606.7,3.2078]
[1748568361913,0.34473767,2607.0,2606.3,0.00576336]
[1748568361914,0.34473767,2607.0,2606.4,4.6243]
[1748568362115,0.34473767,2607.0,2606.3,0.00576336]
[1748568362116,3.2078,2606.7,2606.3,0.00576336]
[1748568362342,1.7297,2606.6,2606.3,0.00576336]
[1748568362524,3.0882,2606.6,2606.3,0.00576336]
[1748568362813,1.5962,2606.5,2606.3,0.00576336]
[1748568363018,7.0145,2606.4,2605.7,3.2078]
[1748568363211,7.0145,2606.4,2605.8,1.4833]
[1748568363821,5.589,2606.4,2606.1,3.2078]
[1748568364418,5.589,2606.4,2606.2,1.4833]
[1748568365013,7.0145,2606.4,2606.2,1.4833]
[1748568365218,7.0145,2606.4,2606.0,0.00576336]
[1748568365426,7.0145,2606.4,2606.0,1.48906336]
[1748568365622,7.0145,2606.4,2606.0,0.00576336]
[1748568365835,3.2078,2606.4,2606.0,0.00576336]
[1748568366018,1.60196336,2606.5,2606.1,3.2078]
[1748568366225,0.00576336,2606.5,2606.4,3.2078]
[1748568366424,0.00576336,2606.5,2606.2,1.388]
[1748568368224,0.00576336,2606.5,2606.4,3.2078]
[1748568368628,0.34473767,2607.0,2606.4,8.2078]
[1748568368931,0.34473767,2607.0,2606.6,3.2078]
[1748568369117,0.34473767,2607.0,2606.9,3.2078]
[1748568369522,0.34473767,2607.0,2606.8,1.4048]
[1748568369819,0.34473767,2607.0,2606.9,4.6416]
[1748568372215,0.34473767,2607.0,2606.9,6.0941]
[1748568374524,0.34473767,2607.0,2606.9,1.4338]
[1748568374824,0.34473767,2607.0,2606.9,4.6416]
[1748568377528,0.35224546,2607.0,2606.9,4.6416]
[1748568379030,0.35224546,2607.0,2606.9,6.0015]
[1748568380032,8.7278,2607.7,2606.9,6.0015]
[1748568380236,5.52,2607.7,2607.3,3.2078]
[1748568380532,6.9061,2607.7,2607.3,3.2078]
[1748568380727,6.9061,2607.7,2607.4,1.385]
[1748568382233,5.52,2607.7,2607.4,1.385]
[1748568383138,6.9634,2607.7,2607.3,3.2078]
[1748568383336,10.1712,2607.7,2607.3,3.2078]
[1748568384337,0.99962964,2607.6,2606.9,3.2078]
[1748568384542,2.40862964,2607.5,2606.9,3.2078]
[1748568384735,0.99962964,2607.4,2606.9,3.2078]
[1748568384936,2.796,2607.3,2606.9,3.2078]
[1748568385239,1.387,2607.3,2607.0,1.3578]
[1748568385531,5.52,2607.7,2607.2,3.2078]
[1748568385738,2.8416,2607.6,2607.2,3.2078]
[1748568386334,1.00104052,2607.5,2607.2,3.2078]
[1748568386536,6.0494,2607.6,2607.2,3.2078]
[1748568386537,1.409,2607.4,2607.2,3.2078]
[1748568387233,6.409,2607.4,2607.2,3.2078]
[1748568387544,4.6404,2607.6,2606.8,3.2078]
[1748568387843,1.0014658,2607.5,2606.9,1.4624]
[1748568388035,1.3969,2607.5,2606.9,1.4624]
[1748568388434,1.3969,2607.5,2607.0,1.4548]
[1748568388634,1.3969,2607.5,2607.1,1.4624]
[1748568389442,1.00216945,2607.4,2607.1,1.4624]
[1748568389642,3.2078,2607.3,2606.8,3.2078]
[1748568389848,6.873,2607.2,2606.5,3.2078]
[1748568390144,1.00202234,2607.1,2606.5,3.2078]
[1748568390338,1.354,2607.2,2606.6,1.383]
[1748568390533,3.2078,2607.6,2607.1,3.2078]
[1748568390733,3.2078,2607.6,2607.2,1.383]
[1748568390934,4.6052,2607.6,2607.2,1.383]
[1748568391442,27.63944772,2608.0,2607.4,3.2078]
[1748568391443,1.00222805,2607.5,2607.4,3.2078]
[1748568391656,1.00222805,2607.5,2607.2,1.38876336]
[1748568391839,40.06033,2607.9,2607.4,3.2078]
[1748568392042,1.00219394,2607.8,2607.5,1.383]
[1748568392270,1.00219394,2607.7,2607.5,1.383]
[1748568392544,1.00228652,2607.6,2607.5,1.383]
[1748568393141,0.00233,2607.9,2607.5,1.383]
[1748568393445,0.00233,2608.1,2607.8,3.2078]
[1748568393643,0.00233,2608.1,2607.9,1.4022]
[1748568395737,0.00233,2608.1,2608.0,1.4055]
[1748568396547,0.00233,2608.1,2608.0,2.8698]
[1748568397139,0.00233,2608.5,2608.0,7.8698]
[1748568397344,0.00233,2608.5,2608.4,3.2078]
[1748568399050,2.21576323,2609.6,2608.7,3.2078]
[1748568399241,0.37567796,2609.9,2609.5,3.2078]
[1748568399242,0.95913831,2609.9,2609.5,3.2078]
[1748568399445,1.4251,2610.4,2609.6,1.3806]
[1748568399446,3.2078,2610.2,2609.6,1.3806]
[1748568399750,1.4186,2610.1,2609.6,1.3806]
[1748568399960,3.7575063,2610.1,2609.6,1.3806]
[1748568400543,3.2078,2609.9,2609.6,1.3806]
[1748568400748,3.2078,2609.9,2608.9,0.0057522]
[1748568400749,1.3768,2609.8,2608.9,3.2135522]
[1748568400945,3.2078,2609.5,2608.9,2.40500552]
[1748568401152,2.7367,2609.4,2609.0,1.3806]
[1748568401545,1.3599,2609.4,2609.0,1.3806]
[1748568401954,1.3599,2609.4,2609.0,4.5884]
[1748568402155,0.00571499,2609.5,2609.0,4.5884]
[1748568404454,3.21351499,2609.5,2609.0,4.5884]
[1748568405350,0.00571499,2609.5,2609.0,4.5884]
[1748568406752,0.00571499,2609.5,2609.0,3.2078]
[1748568407253,3.2078,2609.4,2609.0,4.6551]
[1748568407455,1.3467,2609.3,2609.0,4.6551]
[1748568407657,2.8092,2609.3,2609.0,4.6551]
[1748568409162,1.0045719,2609.2,2608.9,0.0057522]
[1748568409354,2.4791719,2609.1,2608.9,0.0057522]
[1748568409563,1.4746,2609.1,2608.9,0.0057522]
[1748568409959,6.45752828,2609.0,2608.9,0.0057522]
[1748568410456,12.93212828,2609.0,2595.0,22.77913072]
[1748568410659,3.2078,2608.7,2608.1,3.2078]
[1748568410861,3.2078,2608.7,2608.2,1.3619]
[1748568411260,0.1911,2608.6,2608.2,1.3619]
[1748568412461,6.9335,2608.5,2608.2,1.3619]
[1748568412664,1.4805,2608.5,2608.2,1.3619]
[1748568412860,7.0198,2608.6,2608.2,1.3619]
[1748568413072,8.5003,2608.6,2608.2,1.3619]
[1748568414164,8.5003,2608.6,2608.1,0.0057522]
[1748568414668,3.2078,2608.4,2608.1,0.0057522]
[1748568414965,1.3903,2608.3,2608.1,0.0057522]
[1748568415359,3.2078,2608.4,2608.1,0.0057522]
[1748568415572,5.453,2608.3,2608.1,0.0057522]
[1748568416567,6.8433,2608.3,2608.1,0.0057522]
[1748568416866,10.0511,2608.3,2608.1,0.0057522]
[1748568419668,7.9428,2608.6,2608.2,3.2078]
[1748568419669,3.3989,2608.6,2608.2,3.2078]
[1748568419865,0.1911,2608.6,2608.3,1.3572]
[1748568420361,3.2078,2608.4,2608.1,0.0057522]
[1748568420579,1.00699818,2608.3,2608.1,0.0057522]
[1748568420871,8.6618,2608.4,2608.1,0.0057522]
[1748568421064,2.39545595,2608.3,2608.1,0.0057522]
[1748568421388,9.5838,2608.1,2606.3,3.2078]
[1748568421571,3.2078,2607.2,2606.3,3.2078]
[1748568421773,3.2078,2607.2,2606.6,3.2078]
[1748568422269,3.2078,2607.2,2606.6,8.2078]
[1748568422666,3.2135522,2607.2,2606.6,8.2135522]
[1748568422870,0.0057522,2607.2,2606.6,8.2135522]
[1748568423592,0.0057522,2607.2,2606.9,3.2078]
[1748568424075,0.0057522,2607.2,2606.6,3.2135522]
[1748568425275,3.2078,2606.7,2606.6,0.0057522]
[1748568425671,1.325,2607.1,2606.6,0.0057522]
[1748568427269,8.6675522,2607.2,2606.6,0.0057522]
[1748568427270,3.2135522,2607.2,2606.6,0.0057522]
[1748568427475,3.2135522,2607.2,2606.6,1.3843522]
[1748568427781,0.0057522,2607.2,2606.6,1.3843522]
[1748568428080,0.1913,2607.1,2606.6,1.3843522]
[1748568428273,0.1913,2607.1,2606.9,3.2078]
[1748568428593,0.1913,2607.1,2606.6,1.3843522]
[1748568428594,8.8541,2607.1,2606.6,0.0057522]
[1748568428784,11.5869,2607.1,2606.6,0.0057522]
[1748568430084,3.2078,2607.0,2606.6,0.0057522]
[1748568432587,5.6463,2607.1,2606.6,3.2135522]
[1748568432784,8.8541,2607.1,2606.7,1.3247]
[1748568432980,5.6463,2607.1,2606.7,1.3247]
[1748568434495,0.1913,2607.1,2606.7,1.3247]
[1748568435091,3.2078,2607.0,2606.7,1.3247]
[1748568435390,0.1913,2607.1,2606.7,1.3247]
[1748568436181,0.1913,2607.1,2606.9,3.2078]
[1748568436392,0.1913,2607.1,2607.0,1.4343]
[1748568436595,0.1913,2607.1,2607.0,2.8225]
[1748568436787,0.1913,2607.1,2607.0,7.8225]
[1748568438290,3.0283522,2607.2,2607.0,7.8225]
[1748568438692,3.2078,2608.0,2607.0,7.8225]
[1748568438897,3.2078,2608.0,2607.4,3.2078]
[1748568439198,4.6422,2608.4,2607.8,3.2078]
[1748568439398,3.2078,2608.4,2607.9,1.4125]
[1748568439699,0.0057522,2608.3,2607.9,1.4125]
[1748568440387,0.0057522,2608.3,2607.8,3.2078]
[1748568440595,0.0057522,2608.3,2607.9,1.4125]
[1748568441593,1.4116522,2608.3,2607.9,1.4125]
[1748568442188,1.08706614,2608.1,2607.9,1.4125]
[1748568442394,1.4116522,2608.3,2607.9,1.4125]
[1748568442899,1.08707393,2608.1,2607.9,1.4125]
[1748568443099,1.3058,2608.1,2607.8,3.2078]
[1748568443492,1.3058,2608.1,2607.9,1.3673]
[1748568444606,1.08706106,2608.0,2607.4,1.4061]
[1748568444801,3.2078,2607.7,2607.4,1.4061]
[1748568445095,1.2976,2607.9,2607.4,1.4061]
[1748568445296,1.08540635,2607.8,2607.4,1.4061]
[1748568445504,1.3737,2607.7,2607.4,1.4061]
[1748568446108,9.9548,2608.0,2607.2,1.3673]
[1748568446402,1.323,2607.6,2607.2,1.3673]
[1748568446596,1.323,2607.6,2606.9,1.4405]
[1748568446901,3.2078,2607.2,2606.7,1.3689]
[1748568447403,2.47046678,2607.1,2606.7,1.3689]
[1748568447596,1.3737,2607.1,2606.7,1.3689]
[1748568447795,2.45975348,2607.0,2606.5,3.2078]
[1748568447996,1.3849,2606.9,2606.5,3.2078]
[1748568448196,1.3849,2606.9,2606.6,1.3693522]
[1748568450806,1.364,2607.0,2606.6,1.3693522]
[1748568451000,1.10492061,2606.9,2606.6,1.3693522]
[1748568451203,1.2358,2607.3,2606.6,1.3693522]
[1748568451396,5.406,2607.4,2606.8,3.2078]
[1748568451596,1.10501009,2607.3,2606.9,1.3344]
[1748568451801,5.406,2607.4,2606.9,1.3344]
[1748568452105,3.2078,2607.5,2606.9,1.3344]
[1748568452698,2.34100602,2607.4,2606.9,1.3344]
[1748568452896,1.2358,2607.4,2606.9,1.3344]
[1748568453509,3.2078,2607.2,2606.9,1.3344]
[1748568453899,1.3731,2607.1,2606.9,1.3344]
[1748568454099,2.6734,2607.1,2606.9,1.3344]
[1748568455802,1.3731,2607.1,2606.9,1.3344]
[1748568456103,3.2078,2607.5,2606.9,1.3344]
[1748568456305,1.3003,2607.4,2606.9,1.3344]
[1748568456507,2.6382,2607.4,2606.9,1.3344]
[1748568456899,1.3379,2607.4,2606.9,1.3344]
[1748568457104,3.2078,2607.5,2606.9,1.3344]
[1748568457710,1.3665,2607.6,2606.9,1.3344]
[1748568458010,4.5743,2607.6,2606.9,1.3344]
[1748568458210,1.10502667,2607.5,2606.9,1.3344]
[1748568458509,1.3665,2607.5,2606.9,1.3344]
[1748568459606,3.2078,2607.6,2606.9,1.3344]
[1748568459808,1.3665,2607.5,2606.9,1.3344]
[1748568463905,3.2078,2607.6,2606.9,1.3344]
[1748568464102,4.4797,2607.6,2606.9,1.3344]
[1748568464411,1.2719,2607.6,2606.9,1.3344]
[1748568464612,5.8389,2607.7,2607.1,3.2078]
[1748568464816,5.8389,2607.7,2607.2,1.2346]
[1748568465017,1.2719,2607.6,2607.2,1.2346]
[1748568465708,2.6311,2607.7,2607.2,1.2346]
[1748568466013,1.2932,2607.7,2607.2,1.2346]
[1748568466324,1.3261,2608.1,2607.3,4.5567]
[1748568466513,2.6588,2608.1,2607.4,1.2572]
[1748568466720,3.2078,2608.0,2607.4,1.2572]
[1748568467415,4.5339,2608.0,2607.4,1.2572]
[1748568467840,1.10743458,2607.9,2607.0,5.354]
[1748568468015,3.2078,2607.7,2607.0,5.354]
[1748568468211,1.3261,2607.6,2607.1,1.2572]
[1748568468410,1.2711,2607.5,2607.1,1.2572]
[1748568468614,1.3261,2607.4,2607.1,1.2572]
[1748568469111,1.3261,2607.4,2606.8,3.2078]
[1748568469313,1.3261,2607.4,2606.9,1.2672]
[1748568470938,1.3261,2607.4,2607.0,0.28937912]
[1748568471114,1.3261,2607.4,2606.9,1.2672]
[1748568471418,4.5339,2607.4,2606.8,3.2078]
[1748568471817,4.5339,2607.4,2606.9,1.2672]
[1748568472309,1.11785675,2607.3,2606.7,1.2428]
[1748568472518,1.3121,2607.3,2606.9,1.2499]
[1748568472711,1.11777273,2607.2,2606.9,1.2499]
[1748568472911,1.3121,2607.3,2606.9,1.2499]
[1748568473109,1.11780702,2607.2,2606.9,1.2499]
[1748568473319,3.2078,2607.4,2606.9,1.2499]
[1748568473510,2.4301907,2607.3,2606.9,1.2499]
[1748568473815,1.3121,2607.3,2606.9,1.2499]
[1748568474018,2.6336,2607.5,2606.9,1.2499]
[1748568474215,1.1185208,2607.4,2606.9,1.2499]
[1748568474419,1.1185208,2607.3,2606.9,1.2499]
[1748568474719,1.3121,2607.4,2606.9,1.2499]